bitfinex-derivatives/quotes_BTCF0:USTF0_20240917
["timestamp","ask_amount","ask_price","bid_price","bid_amount"]
[1726534083748,0.004,58008.0,57998.0,0.6608]
[1726534083749,0.10213488,58006.0,57998.0,0.6608]
[1726534084055,0.02794628,58005.0,58003.0,0.3]
[1726534084252,0.10213488,58008.0,58006.0,0.086193]
[1726534084448,0.10213488,58008.0,58007.0,0.086192]
[1726534084753,0.10213488,58009.0,58008.0,0.08619]
[1726534084953,0.3626,58015.0,58008.0,0.08619]
[1726534084954,0.3608,58015.0,58008.0,0.38619]
[1726534085248,0.004,58022.0,58013.0,0.3]
[1726534085553,0.3648,58028.0,58021.0,0.3]
[1726534085753,0.3648,58028.0,58026.0,0.35150835]
[1726534085950,0.3648,58028.0,58026.0,0.43767135]
[1726534086147,0.3648,58028.0,58026.0,0.386163]
[1726534087251,0.004,58028.0,58026.0,0.386163]
[1726534087442,0.004,58037.0,58031.0,0.086156]
[1726534087755,0.3608,58039.0,58031.0,0.05146173]
[1726534087756,0.3608,58034.0,58031.0,0.05146173]
[1726534087949,0.3608,58039.0,58033.0,0.05146173]
[1726534088157,0.3608,58039.0,58034.0,0.05146173]
[1726534088552,0.3608,58039.0,58033.0,0.05146173]
[1726534088847,0.0008,58034.0,58033.0,0.05146173]
[1726534089049,0.0008,58034.0,58032.0,0.35146173]
[1726534089357,0.0008,58033.0,58032.0,0.35146173]
[1726534089656,0.0008,58033.0,58032.0,0.3]
[1726534089856,0.0008,58033.0,58032.0,0.35146173]
[1726534090550,0.004,58043.0,58032.0,0.3]
[1726534090753,0.004,58048.0,58038.0,0.3]
[1726534090754,0.3608,58047.0,58038.0,0.3]
[1726534090956,0.3608,58047.0,58046.0,0.3]
[1726534091961,0.3618,58047.0,58046.0,0.3]
[1726534092459,0.3618,58047.0,58042.0,0.3]
[1726534092652,0.3608,58047.0,58046.0,0.001]
[1726534093160,0.3608,58047.0,58042.0,0.3]
[1726534093356,0.0008,58043.0,58042.0,0.3]
[1726534094567,0.0008,58043.0,58042.0,0.38614]
[1726534094958,0.3618,58047.0,58042.0,0.3]
[1726534095262,0.3608,58047.0,58046.0,0.3]
[1726534095764,0.3608,58047.0,58046.0,0.386134]
[1726534096358,0.3608,58047.0,58040.0,0.3633844]
[1726534096359,0.3608,58047.0,58040.0,0.2513334]
[1726534096559,0.6616,58041.0,58020.0,0.00258531]
[1726534096769,0.0008,58021.0,58020.0,0.00258531]
[1726534096968,0.446964,58026.0,58020.0,0.00258531]
[1726534097365,0.3608,58021.0,58020.0,0.00258531]
[1726534097572,0.3598,58021.0,58020.0,0.00258531]
[1726534098275,0.3598,58021.0,58020.0,0.00558531]
[1726534098470,0.3608,58021.0,58020.0,0.00558531]
[1726534098666,0.3608,58021.0,58020.0,0.30258531]
[1726534098864,0.3608,58021.0,58020.0,0.30558531]
[1726534100279,0.3608,58021.0,58020.0,0.00558531]
[1726534102283,0.36248,58026.0,58020.0,0.00558531]
[1726534102472,0.3608,58026.0,58020.0,0.00558531]
[1726534102980,0.3608,58026.0,58017.0,0.33963695]
[1726534102981,0.17199009,58025.0,58017.0,0.33963695]
[1726534103175,0.18741195,58018.0,58017.0,0.33875695]
[1726534103480,0.17279009,58018.0,58017.0,0.42493395]
[1726534103672,0.17279009,58018.0,58017.0,0.99261395]
[1726534103871,0.17279009,58018.0,58017.0,0.47553395]
[1726534104478,0.0008,58018.0,58017.0,0.47553395]
[1726534104686,0.11323021,58018.0,58017.0,0.47553395]
[1726534104886,0.16611892,58018.0,58017.0,0.47553395]
[1726534106170,0.16611892,58018.0,58017.0,0.136777]
[1726534106881,0.28290102,58018.0,58017.0,0.136777]
[1726534107185,0.33578973,58018.0,58017.0,0.136777]
[1726534107385,0.16611892,58018.0,58017.0,0.136777]
[1726534107688,0.52691892,58018.0,58017.0,0.136777]
[1726534107890,0.52691892,58018.0,58017.0,0.0506]
[1726534108288,0.71355681,58018.0,58017.0,0.0506]
[1726534108483,0.59158761,58018.0,58017.0,0.0506]
[1726534108677,0.31948737,58018.0,58017.0,0.0506]
[1726534108878,0.3608,58025.0,58017.0,0.11912117]
[1726534109078,0.3608,58025.0,58021.0,0.05142104]
[1726534109380,0.3608,58025.0,58024.0,0.05142104]
[1726534109587,0.3608,58025.0,58021.0,0.06852117]
[1726534109895,0.0008,58022.0,58021.0,0.06852117]
[1726534110080,0.0008,58022.0,58020.0,0.06852117]
[1726534110285,0.0008,58021.0,58020.0,0.06852117]
[1726534110488,0.0008,58021.0,58018.0,0.086175]
[1726534110700,0.0008,58019.0,58018.0,0.086175]
[1726534110890,0.0008,58021.0,58018.0,0.086175]
[1726534111985,0.0018,58021.0,58018.0,0.086175]
[1726534112589,0.0018,58021.0,58019.0,0.08561757]
[1726534112983,0.0018,58021.0,58018.0,0.08561757]
[1726534113186,0.0008,58019.0,58018.0,0.08561757]
[1726534113391,0.0008,58019.0,58018.0,0.11486893]
[1726534114295,0.0008,58019.0,58018.0,0.11496408]
[1726534114497,0.0018,58019.0,58018.0,0.11596408]
[1726534115293,0.3626,58019.0,58018.0,0.11596408]
[1726534115688,0.3626,58019.0,58018.0,0.001]
[1726534118491,0.3626,58019.0,58018.0,0.20229522]
[1726534118688,0.3626,58019.0,58018.0,0.11627439]
[1726534119497,0.0018,58019.0,58018.0,0.30523114]
[1726534120393,0.448774,58019.0,58018.0,0.21905614]
[1726534120594,0.448774,58019.0,58018.0,0.001]
[1726534121798,0.448774,58019.0,58018.0,0.06992273]
[1726534122111,0.448774,58019.0,58018.0,0.001]
[1726534122498,0.448774,58019.0,58018.0,0.06987707]
[1726534122701,0.448774,58019.0,58018.0,0.001]
[1726534123406,0.448774,58019.0,58018.0,0.20264339]
[1726534123901,0.448774,58019.0,58018.0,0.1164958]
[1726534124298,0.448774,58019.0,58018.0,0.20258374]
[1726534125198,0.087974,58019.0,58018.0,0.1164958]
[1726534125401,0.087974,58019.0,58018.0,0.20257999]
[1726534125704,0.087974,58019.0,58018.0,0.001]
[1726534125705,0.287974,58019.0,58018.0,0.001]
[1726534125900,0.295374,58019.0,58018.0,0.06987172]
[1726534126106,0.295374,58019.0,58018.0,0.001]
[1726534126800,0.295374,58019.0,58018.0,0.06987172]
[1726534127405,0.095374,58019.0,58018.0,0.06987172]
[1726534127600,0.095374,58019.0,58018.0,0.001]
[1726534128218,0.095374,58019.0,58018.0,0.0698489]
[1726534129011,0.0018,58019.0,58018.0,0.06984073]
[1726534129201,0.0018,58019.0,58018.0,0.001]
[1726534132005,0.0018,58019.0,58018.0,0.20239623]
[1726534132204,0.0018,58019.0,58018.0,0.28857123]
[1726534132506,0.0018,58019.0,58018.0,0.20247525]
[1726534132705,0.0018,58019.0,58018.0,0.305257]
[1726534133100,0.0018,58019.0,58018.0,0.30511769]
[1726534133301,0.0018,58019.0,58018.0,0.20233594]
[1726534133497,0.0018,58019.0,58018.0,0.30511769]
[1726534134612,0.0018,58019.0,58018.0,0.20233594]
[1726534137620,0.00258583,58022.0,58020.0,0.086171]
[1726534137806,0.00258583,58022.0,58021.0,0.32266127]
[1726534138114,0.00258583,58022.0,58021.0,0.40883227]
[1726534138302,0.00258583,58022.0,58021.0,0.30557248]
[1726534138814,0.00258583,58022.0,58021.0,0.30797248]
[1726534140122,0.00258583,58022.0,58021.0,0.30897248]
[1726534140311,0.3648,58032.0,58021.0,0.44603785]
[1726534140614,0.3608,58032.0,58031.0,0.286556]
[1726534140915,0.3608,58032.0,58031.0,0.40165748]
[1726534141123,0.3608,58032.0,58031.0,0.4011987]
[1726534141619,1.67776,58032.0,58029.0,0.08599477]
[1726534141808,1.67776,58032.0,58027.0,0.05160679]
[1726534141809,0.08616,58028.0,58027.0,0.05160679]
[1726534142014,0.88656,58028.0,58026.0,0.05160679]
[1726534142213,0.0004,58027.0,58026.0,0.05160679]
[1726534142417,0.517,58027.0,58026.0,0.05160679]
[1726534142618,0.603162,58027.0,58026.0,0.05160679]
[1726534143017,0.086162,58027.0,58026.0,0.05160679]
[1726534143217,0.086162,58027.0,58024.0,0.0688062]
[1726534143518,0.3612,58025.0,58023.0,0.08599477]
[1726534143719,0.0004,58024.0,58023.0,0.08599477]
[1726534143917,0.0004,58024.0,58023.0,0.11502013]
[1726534144715,0.0004,58024.0,58022.0,0.14305422]
[1726534144716,0.0004,58024.0,58022.0,0.14289583]
[1726534144915,0.0004,58023.0,58022.0,0.14289583]
[1726534145119,0.0004,58023.0,58022.0,0.25799543]
[1726534145917,0.0004,58023.0,58022.0,0.17196335]
[1726534146217,0.0004,58023.0,58022.0,0.25797796]
[1726534146523,0.0004,58023.0,58022.0,0.25803185]
[1726534146824,0.0004,58023.0,58022.0,0.17201724]
[1726534147320,0.0004,58023.0,58022.0,0.25802723]
[1726534147521,0.0004,58023.0,58022.0,0.25902669]
[1726534147821,0.0004,58023.0,58022.0,0.17301724]
[1726534148024,0.0004,58023.0,58022.0,0.25902649]
[1726534149416,0.3612,58023.0,58022.0,0.25902649]
[1726534151417,1.564408,58023.0,58022.0,0.08700925]
[1726534151618,1.564408,58023.0,58022.0,0.001]
[1726534151619,1.650576,58023.0,58022.0,0.001]
[1726534151825,1.650576,58023.0,58022.0,0.05262071]
[1726534152119,1.050576,58023.0,58022.0,0.001]
[1726534152309,1.650576,58023.0,58022.0,0.001]
[1726534152510,1.050576,58023.0,58022.0,0.001]
[1726534152815,1.650576,58023.0,58022.0,0.001]
[1726534153320,1.650576,58023.0,58022.0,0.05261905]
[1726534154423,1.6596709,58023.0,58022.0,0.05261905]
[1726534155319,1.0596709,58023.0,58022.0,0.05261905]
[1726534155819,0.172338,58022.0,58021.0,0.0024]
[1726534156018,0.172338,58022.0,58009.0,0.10324046]
[1726534156019,0.53964,58022.0,58012.0,0.06882451]
[1726534156220,0.086184,58012.0,58011.0,0.06882451]
[1726534156426,0.0008,58012.0,58010.0,0.06882451]
[1726534156614,0.2008,58011.0,58010.0,0.06882451]
[1726534156813,0.286186,58011.0,58010.0,0.06882451]
[1726534157012,0.085187,58010.0,58008.0,0.06882451]
[1726534157231,0.0008,58009.0,58008.0,0.06882451]
[1726534157526,0.086989,58009.0,58006.0,0.17220225]
[1726534157721,0.3616,58007.0,58006.0,0.17220225]
[1726534158023,0.3174767,58007.0,58006.0,0.28717121]
[1726534158225,0.3174767,58007.0,58006.0,0.086193]
[1726534159319,0.5174767,58007.0,58004.0,0.08600925]
[1726534159523,0.0008,58005.0,58004.0,0.08600925]
[1726534159815,0.0008,58005.0,58004.0,0.28675687]
[1726534160023,0.0008,58005.0,58004.0,0.20077552]
[1726534160219,0.0008,58005.0,58004.0,0.200739]
[1726534160421,0.0008,58005.0,58004.0,0.28670399]
[1726534161213,0.0018,58005.0,58004.0,0.20050899]
[1726534162017,0.0018,58005.0,58004.0,0.114544]
[1726534162526,0.0018,58005.0,58004.0,0.20074]
[1726534163427,0.0018,58005.0,58004.0,0.28665777]
[1726534164523,0.0018,58005.0,58004.0,0.17211377]
[1726534165128,0.0018,58005.0,58004.0,0.086196]
[1726534175828,0.0018,58005.0,58004.0,0.17211377]
[1726534176136,0.0018,58005.0,58004.0,0.20066075]
[1726534179228,0.0018,58005.0,58004.0,0.30390121]
[1726534179432,0.0018,58005.0,58004.0,0.30400331]
[1726534179637,0.3608,58008.0,58006.0,0.086192]
[1726534179837,0.3608,58008.0,58007.0,0.11456685]
[1726534180136,0.3608,58008.0,58007.0,0.17616685]
[1726534181041,0.3618,58008.0,58007.0,0.17616685]
[1726534181241,0.3618,58008.0,58007.0,0.26235885]
[1726534181437,0.3618,58008.0,58007.0,0.36559931]
[1726534181638,0.3618,58008.0,58000.0,0.11991205]
[1726534181639,1.034305,58007.0,57989.0,0.12904234]
[1726534181840,1.034305,58007.0,57978.0,0.17522127]
[1726534181841,0.3608,57985.0,57979.0,0.004]
[1726534182043,0.5616,57980.0,57969.0,0.004]
[1726534182355,0.7216,57970.0,57969.0,0.004]
[1726534183339,0.9216,57970.0,57969.0,0.004]
[1726534183845,0.73081026,57970.0,57969.0,0.004]
[1726534184539,0.7216,57970.0,57969.0,0.004]
[1726534184741,0.7216,57970.0,57969.0,0.51398052]
[1726534184944,0.7216,57970.0,57969.0,0.5828882]
[1726534185750,0.7236,57970.0,57969.0,0.5828882]
[1726534186138,0.7216,57970.0,57969.0,0.5828882]
[1726534186446,0.3618,57970.0,57969.0,0.5828882]
[1726534186843,0.3608,57970.0,57969.0,0.5828882]
[1726534188749,0.3608,57970.0,57969.0,0.5838882]
[1726534189345,0.3608,57970.0,57969.0,0.5828882]
[1726534189750,0.3608,57970.0,57969.0,0.3828882]
[1726534190053,0.3618,57970.0,57969.0,0.3828882]
[1726534190951,0.3618,57970.0,57969.0,0.5828882]
[1726534191542,0.3628,57970.0,57969.0,0.5828882]
[1726534192150,0.3618,57970.0,57969.0,0.5828882]
[1726534194752,0.3608,57970.0,57969.0,0.5828882]
[1726534195051,0.00258786,57973.0,57972.0,0.086244]
[1726534195254,0.00258786,57973.0,57972.0,0.30998052]
[1726534195553,0.00258786,57973.0,57972.0,0.3788882]
[1726534195745,0.00258786,57973.0,57972.0,0.4651322]
[1726534196559,0.00458786,57973.0,57972.0,0.4651322]
[1726534196943,0.002,57973.0,57972.0,0.4651322]
[1726534198445,0.0025874,57978.0,57972.0,0.4651322]
[1726534198649,0.0025874,57978.0,57977.0,0.2]
[1726534198844,0.0025874,57978.0,57977.0,0.50998052]
[1726534199055,0.0025874,57978.0,57977.0,0.5788882]
[1726534199551,0.0025874,57978.0,57977.0,0.3788882]
[1726534199552,0.4496224,57978.0,57977.0,0.3788882]
[1726534199754,0.4506224,57978.0,57977.0,0.3788882]
[1726534201451,0.086241,57974.0,57973.0,0.00258739]
[1726534201649,0.087041,57974.0,57973.0,0.00258739]
[1726534201851,0.087041,57974.0,57973.0,0.31256791]
[1726534202648,0.447841,57974.0,57973.0,0.31256791]
[1726534202847,0.450841,57974.0,57973.0,0.31256791]
[1726534203250,0.3646,57974.0,57973.0,0.31256791]
[1726534204950,0.3616,57974.0,57973.0,0.001]
[1726534205149,0.3616,57974.0,57958.0,0.1245]
[1726534205150,0.7224,57974.0,57958.0,0.1245]
[1726534205454,0.3608,57966.0,57965.0,0.00726791]
[1726534205954,0.447053,57966.0,57965.0,0.00726791]
[1726534206347,0.3608,57966.0,57958.0,0.1245]
[1726534206553,0.3608,57966.0,57958.0,0.19340768]
[1726534206554,0.3616,57959.0,57958.0,0.19340768]
[1726534206944,0.0008,57959.0,57958.0,0.20067559]
[1726534207345,0.0008,57959.0,57931.0,0.3608]
[1726534207346,1.14637241,57959.0,57931.0,0.3608]
[1726534207552,0.0008,57938.0,57937.0,0.05580768]
[1726534207943,0.0008,57938.0,57931.0,0.36176]
[1726534207944,0.086307,57930.0,57916.0,0.204]
[1726534208146,0.51784,57937.0,57916.0,0.04707559]
[1726534208147,0.0008,57917.0,57916.0,0.04707559]
[1726534208350,0.0008,57917.0,57916.0,0.24707559]
[1726534208552,0.0008,57917.0,57916.0,1.36507559]
[1726534209351,0.0018,57917.0,57916.0,1.36507559]
[1726534209560,0.35681578,57924.0,57916.0,0.24707559]
[1726534209758,0.35681578,57924.0,57916.0,0.24787559]
[1726534210061,0.004,57931.0,57923.0,0.2]
[1726534210247,0.00258962,57932.0,57928.0,0.2]
[1726534210452,0.00258962,57932.0,57920.0,0.40787559]
[1726534210766,0.0008,57921.0,57920.0,0.40787559]
[1726534211751,0.0008,57921.0,57920.0,0.40887559]
[1726534212358,0.0018,57921.0,57920.0,0.40887559]
[1726534212858,0.0018,57921.0,57920.0,0.60887559]
[1726534213066,0.3608,57930.0,57920.0,0.60887559]
[1726534213258,0.3608,57930.0,57920.0,0.66377559]
[1726534213952,0.3608,57930.0,57929.0,0.2]
[1726534214155,0.00258962,57932.0,57929.0,0.2]
[1726534214349,0.00258962,57932.0,57930.0,0.639906]
[1726534214549,0.3648,57942.0,57930.0,0.1928]
[1726534214754,0.3608,57942.0,57935.0,0.2]
[1726534215158,0.3608,57942.0,57935.0,0.24707559]
[1726534215661,0.3608,57942.0,57931.0,0.2]
[1726534215863,0.0008,57932.0,57931.0,0.2]
[1726534216058,0.0008,57932.0,57931.0,0.24707559]
[1726534217860,0.0018,57932.0,57931.0,0.25407559]
[1726534218756,0.0018,57932.0,57931.0,0.24707559]
[1726534218963,0.0018,57932.0,57931.0,0.25407559]
[1726534219257,0.0018,57932.0,57931.0,0.34038059]
[1726534222063,0.0018,57932.0,57931.0,0.70118059]
[1726534222265,0.004,57946.0,57945.0,0.086284]
[1726534222470,0.00932106,57966.0,57945.0,0.086284]
[1726534222471,0.004,57960.0,57945.0,0.922]
[1726534222665,0.0002,57966.0,57958.0,0.086263]
[1726534222868,0.0002,57966.0,57965.0,0.0004]
[1726534223172,0.6002,57966.0,57965.0,0.0004]
[1726534223362,1.11776,57966.0,57965.0,0.0004]
[1726534224463,0.52176,57966.0,57965.0,0.0004]
[1726534224860,0.51776,57966.0,57965.0,0.0004]
[1726534225062,0.52176,57966.0,57965.0,0.0004]
[1726534225561,0.004,57966.0,57965.0,0.0004]
[1726534225865,0.004,57966.0,57965.0,0.086654]
[1726534227164,0.3608,57967.0,57965.0,0.086654]
[1726534227472,0.005,57966.0,57965.0,0.086654]
[1726534227669,0.005,57966.0,57965.0,0.086254]
[1726534228272,0.3608,57967.0,57965.0,0.086254]
[1726534228466,0.3658,57967.0,57966.0,0.086653]
[1726534229069,0.3608,57967.0,57966.0,0.086653]
[1726534230676,0.3668,57967.0,57966.0,0.086653]
[1726534231179,0.3608,57967.0,57966.0,0.086653]
[1726534231374,0.3608,57967.0,57966.0,0.089653]
[1726534232666,0.004,57970.0,57966.0,0.089653]
[1726534232667,0.004,57970.0,57969.0,0.086248]
[1726534232871,0.00258784,57972.0,57971.0,0.086245]
[1726534233074,0.00258784,57972.0,57971.0,0.286645]
[1726534233371,0.00258784,57972.0,57971.0,0.286245]
[1726534234769,0.00258784,57972.0,57971.0,0.32932059]
[1726534234966,0.00258784,57972.0,57971.0,0.41556559]
[1726534235172,0.004,57984.0,57983.0,0.086227]
[1726534235362,0.3608,57990.0,57989.0,0.086218]
[1726534235564,0.3608,57990.0,57989.0,0.286618]
[1726534235773,0.00258708,57993.0,57992.0,0.086214]
[1726534235972,0.00258708,57993.0,57992.0,0.086614]
[1726534236875,0.00258708,57993.0,57992.0,0.12968959]
[1726534237576,0.00458708,57993.0,57992.0,0.12968959]
[1726534237773,0.3608,58001.0,58000.0,0.086202]
[1726534237972,0.3608,58001.0,58000.0,0.286602]
[1726534238174,0.3608,58001.0,58000.0,0.32967759]
[1726534240074,2.127041,58001.0,57975.0,0.3608]
[1726534240279,0.0004,57984.0,57975.0,0.3608]
[1726534240481,0.5178,57984.0,57975.0,0.3608]
[1726534240676,1.1178,57984.0,57975.0,0.3608]
[1726534241078,0.5178,57984.0,57975.0,0.3608]
[1726534241283,0.0004,57984.0,57983.0,0.002]
[1726534243283,0.20000638,57984.0,57983.0,0.2]
[1726534243479,0.20000638,57984.0,57983.0,0.32930259]
[1726534243782,0.20000638,57984.0,57983.0,0.33230259]
[1726534243983,0.20000638,57984.0,57983.0,0.13230259]
[1726534244288,0.20000638,57984.0,57983.0,0.12930259]
[1726534244478,0.20000638,57984.0,57983.0,0.20400259]
[1726534245884,0.20000638,57984.0,57983.0,0.20100259]
[1726534246073,0.20000638,57984.0,57983.0,0.20400259]
[1726534246478,0.20000638,57984.0,57983.0,0.11777559]
[1726534247783,0.18873711,57984.0,57983.0,0.11777559]
[1726534247972,0.18873711,57984.0,57983.0,0.0747]
[1726534248177,0.18873711,57984.0,57983.0,0.003]
[1726534249181,0.18873711,57984.0,57975.0,0.04316097]
[1726534249387,0.0004,57976.0,57975.0,0.04316097]
[1726534249588,0.0004,57976.0,57975.0,0.08623656]
[1726534249589,0.02006114,57976.0,57975.0,0.08623656]
[1726534249882,0.01706114,57976.0,57975.0,0.38623656]
[1726534250272,0.06087597,57979.0,57975.0,0.34307559]
[1726534250477,0.06087597,57978.0,57976.0,0.3608]
[1726534250677,0.06087597,57977.0,57976.0,0.447038]
[1726534250882,0.3608,57986.0,57978.0,0.086234]
[1726534251078,0.3608,57986.0,57985.0,0.0004]
[1726534252185,0.3608,57986.0,57985.0,0.04347559]
[1726534258284,0.3608,57986.0,57981.0,0.15679688]
[1726534258285,0.54002699,57986.0,57981.0,0.15679688]
[1726534258584,0.0004,57982.0,57981.0,0.24302688]
[1726534258786,0.11037462,57982.0,57981.0,0.24302688]
[1726534259583,0.15117655,57982.0,57981.0,0.24302688]
[1726534259986,0.15117655,57982.0,57981.0,0.24802688]
[1726534261592,0.22042892,57982.0,57981.0,0.24802688]
[1726534263194,0.15117655,57982.0,57981.0,1.36542688]
[1726534263490,0.00258686,57992.0,57991.0,0.086215]
[1726534263688,0.06687541,57992.0,57991.0,0.386615]
[1726534264594,0.06687541,57992.0,57991.0,0.3004]
[1726534265290,0.09482673,57992.0,57991.0,0.386615]
[1726534265491,0.09482673,57992.0,57991.0,0.0004]
[1726534265693,0.10082673,57992.0,57991.0,0.0014]
[1726534266286,0.00858686,57992.0,57991.0,0.0014]
[1726534269590,0.36938686,57992.0,57991.0,0.0014]
[1726534273302,0.5790581,57992.0,57988.0,0.00092]
[1726534273491,0.0004,57989.0,57975.0,0.13728566]
[1726534273692,0.3612,57979.0,57975.0,0.22352466]
[1726534273999,0.60381802,57979.0,57975.0,0.22352466]
[1726534274593,0.59646514,57979.0,57975.0,0.22352466]
[1726534274792,0.59646514,57979.0,57975.0,0.23258766]
[1726534275295,0.59646514,57979.0,57978.0,0.12763133]
[1726534275698,0.59746514,57979.0,57978.0,0.12763133]
[1726534276300,0.59946514,57979.0,57978.0,0.11963133]
[1726534278900,0.59646514,57979.0,57978.0,0.11963133]
[1726534279094,0.60146514,57979.0,57975.0,0.086239]
[1726534279290,0.0004,57976.0,57975.0,0.086239]
[1726534279496,0.23580148,57976.0,57975.0,0.086239]
[1726534279694,0.45693388,57976.0,57975.0,0.086239]
[1726534280094,0.23580148,57976.0,57975.0,0.086239]
[1726534280805,0.23780148,57976.0,57975.0,0.086239]
[1726534281197,0.0024,57976.0,57975.0,0.28565647]
[1726534281706,0.0024,57976.0,57975.0,0.17167426]
[1726534282001,0.0024,57976.0,57975.0,0.28566176]
[1726534282302,0.0004,57976.0,57975.0,0.28566176]
[1726534282708,0.0014,57976.0,57975.0,0.28566176]
[1726534283398,0.0014,57976.0,57975.0,0.17167426]
[1726534283900,0.0014,57976.0,57973.0,0.06885932]
[1726534284099,0.0014,57976.0,57973.0,0.06885855]
[1726534284100,0.3612,57974.0,57973.0,0.06885855]
[1726534284402,0.3612,57974.0,57972.0,0.06885855]
[1726534284602,0.0004,57973.0,57972.0,0.06885855]
[1726534286408,0.0004,57973.0,57971.0,0.07144553]
[1726534286604,0.0004,57973.0,57972.0,0.26885855]
[1726534286802,0.3608,57974.0,57973.0,0.086242]
[1726534287004,0.3608,57974.0,57973.0,0.15545965]
[1726534288307,0.30040139,57974.0,57973.0,0.20061692]
[1726534289508,0.3608,57979.0,57975.0,0.086238]
[1726534289715,0.3608,57979.0,57978.0,0.0004]
[1726534291016,0.3668,57979.0,57978.0,0.0014]
[1726534293313,0.3638,57979.0,57978.0,0.0004]
[1726534296209,0.53412191,57979.0,57978.0,0.00021277]
[1726534297514,0.53412191,57979.0,57977.0,0.357936]
[1726534297717,0.23463224,57978.0,57977.0,0.357936]
[1726534298012,0.17072191,57978.0,57977.0,0.357936]
[1726534298922,0.17072191,57978.0,57977.0,0.427236]
[1726534299309,0.17272191,57978.0,57977.0,0.427236]
[1726534299514,0.35991078,57978.0,57977.0,0.427236]
[1726534299816,0.23663224,57978.0,57977.0,0.427236]
[1726534300022,0.17272191,57978.0,57977.0,0.427236]
[1726534301218,0.17272191,57978.0,57974.0,0.00258726]
[1726534301219,0.51744,57977.0,57955.0,0.3608]
[1726534301421,0.15579399,57963.0,57958.0,0.086264]
[1726534301620,0.51400574,57961.0,57958.0,0.086264]
[1726534301825,0.17032191,57960.0,57956.0,0.2]
[1726534302120,0.0004,57957.0,57956.0,0.2]
[1726534302325,0.06923059,57957.0,57956.0,0.2]
[1726534302517,0.11668508,57957.0,57956.0,0.2]
[1726534303109,0.11153668,57957.0,57956.0,0.2]
[1726534303315,0.3608,57961.0,57956.0,0.31567384]
[1726534303517,0.3608,57961.0,57957.0,0.20178074]
[1726534303720,0.3608,57961.0,57960.0,0.0004]
[1726534304419,0.3608,57961.0,57960.0,0.06925357]
[1726534305521,0.3608,57961.0,57960.0,0.0004]
[1726534306625,0.3618,57961.0,57960.0,0.0144]
[1726534306917,0.3618,57961.0,57960.0,0.06601639]
[1726534307218,0.3618,57961.0,57960.0,0.0144]
[1726534308124,0.44806,57961.0,57960.0,0.0144]
[1726534310025,1.33432,57961.0,57960.0,0.0144]
[1726534310223,0.086269,57955.0,57953.0,0.06885357]
[1726534310417,0.086269,57955.0,57948.0,0.00258851]
[1726534310418,0.8592,57954.0,57952.0,0.05155859]
[1726534310616,0.086273,57952.0,57951.0,0.05155859]
[1726534310821,0.086275,57951.0,57950.0,0.05155859]
[1726534311021,0.086275,57951.0,57949.0,0.05155859]
[1726534311022,0.086675,57951.0,57949.0,0.05155859]
[1726534311321,0.0004,57950.0,57949.0,0.05155859]
[1726534311515,0.086275,57951.0,57948.0,0.00258851]
[1726534311717,0.3612,57949.0,57948.0,0.00258851]
[1726534312823,0.447478,57949.0,57948.0,0.00258851]
[1726534313123,0.447478,57949.0,57948.0,0.0541471]
[1726534313622,0.447478,57949.0,57941.0,0.00915145]
[1726534313623,0.086281,57947.0,57946.0,0.06885357]
[1726534313821,0.086281,57947.0,57944.0,0.06885357]
[1726534313822,0.086282,57946.0,57944.0,0.06885357]
[1726534314025,0.0008,57945.0,57942.0,0.06885357]
[1726534314225,0.086282,57946.0,57942.0,0.06885357]
[1726534314226,0.0008,57943.0,57942.0,0.06885357]
[1726534314530,0.3608,57944.0,57941.0,0.06885357]
[1726534314734,0.3608,57944.0,57943.0,0.05146821]
[1726534314918,0.3598,57944.0,57943.0,0.05146821]
[1726534315426,0.3598,57944.0,57942.0,0.13775621]
[1726534315623,0.3598,57944.0,57942.0,0.05146821]
[1726534316628,0.001,57943.0,57942.0,0.05146821]
[1726534317221,0.3608,57944.0,57942.0,0.05146821]
[1726534317831,0.001,57943.0,57942.0,0.05146821]
[1726534318237,0.3598,57944.0,57942.0,0.05146821]
[1726534318525,0.3608,57944.0,57940.0,0.08629]
[1726534318725,0.0008,57941.0,57940.0,0.08629]
[1726534319931,0.001,57943.0,57942.0,0.0002]
[1726534320135,0.001,57943.0,57942.0,0.001]
[1726534320337,0.3598,57944.0,57942.0,0.0008]
[1726534321131,0.3598,57944.0,57942.0,0.0018]
[1726534321132,0.001,57943.0,57942.0,0.0018]
[1726534321336,0.001,57943.0,57942.0,0.088088]
[1726534321635,0.001,57944.0,57942.0,0.088088]
[1726534321838,0.001,57944.0,57943.0,0.0004]
[1726534323137,0.3608,57945.0,57943.0,0.086687]
[1726534323332,0.3608,57945.0,57944.0,0.0004]
[1726534324628,0.3608,57945.0,57944.0,0.0024]
[1726534326135,0.3608,57945.0,57944.0,0.088685]
[1726534326731,0.00258875,57947.0,57946.0,0.086282]
[1726534326934,0.6839,57957.0,57946.0,0.2004]
[1726534327239,0.6859,57957.0,57951.0,0.05185387]
[1726534327536,0.6859,57957.0,57950.0,0.086275]
[1726534327736,0.0004,57951.0,57950.0,0.086275]
[1726534328535,0.0004,57951.0,57950.0,0.15487383]
[1726534328732,0.0004,57951.0,57948.0,0.0025883]
[1726534328936,0.0004,57951.0,57949.0,0.06865984]
[1726534329139,0.772167,57957.0,57949.0,0.06865984]
[1726534329333,0.772167,57957.0,57951.0,0.0004]
[1726534329529,0.086268,57956.0,57951.0,0.0004]
[1726534330537,0.3648,57952.0,57951.0,0.0004]
[1726534332442,0.3658,57952.0,57951.0,0.0004]
[1726534333037,0.3658,57952.0,57951.0,0.0865069]
[1726534333240,0.3658,57952.0,57951.0,0.28869154]
[1726534333435,0.3658,57952.0,57951.0,0.086675]
[1726534333944,0.3658,57952.0,57951.0,0.0004]
[1726534335441,0.39377137,57952.0,57951.0,0.0004]
[1726534336947,0.39377176,57952.0,57951.0,0.0004]
[1726534338639,0.39377176,57952.0,57951.0,0.086675]
[1726534338848,0.086281,57947.0,57926.0,0.004]
[1726534339047,0.51772,57951.0,57925.0,0.086313]
[1726534339048,0.0008,57927.0,57925.0,0.086313]